[Event "Charlotte Summer IM D 2022"]
[Site "Charlotte"]
[Date "2022.07.28"]
[Round "7.2"]
[White "Levine, Joseph"]
[Black "Canty, James"]
[Result "1-0"]
[ECO "B90"]
[WhiteElo "2294"]
[BlackElo "2175"]
[Annotator "TA"]
[PlyCount "67"]
[EventDate "2022.07.24"]
[EventType "tourn"]
[EventCountry "USA"]
[SourceTitle "playchess.com"]
[Source "ChessBase"]
[SourceQuality "1"]
[TimeControl "5400+30"]

{[%evp 15,67,12,18,20,10,0,8,10,7,-9,-10,-18,-24,-14,-31,-20,-16,-22,-16,-32,-31,-33,0,-79,-58,-60,-54,-98,-88,-95,-41,-55,0,0,0,0,18,26,24,61,50,0,138,0,3,0,710,712,704,702,699,685,860,832]} 1. e4 {[%emt 0:00:01]} c5 {[%emt 0:02:11]} 2. Nf3 {[%emt 0:00:02]} d6 {[%emt 0:00:08]} 3. d4 {[%emt 0:00:01]} cxd4 {[%emt 0:00:09]} 4. Nxd4 {[%emt 0:00:02]} Nf6 {[%emt 1:30:02]} 5. Nc3 {[%emt 0:00:04]} a6 {[%emt 0:00:00]} 6. Bd3 {[%emt 0:00:04]} e5 {[%emt 0:00:00]} 7. Nde2 {[%emt 0:00:03]} Be7 {[%emt 0:00:00]} 8. O-O {[%emt 0:00:03]} O-O {[%emt 0:00:00]} 9. Ng3 {[%emt 0:00:03] B90: Sicilian Najdorf: Unusual White 6th moves, 6 Be3 Ng4 and 6 Be3 e5.} Be6 {[%emt 0:00:00]} 10. Nd5 {[%emt 0:00:01]} Bxd5 {[%emt 0:00:00]} 11. exd5 {[%emt 0:00:02] The position is equal.} g6 {[%emt 0:00:00] Against Nf5} 12. f4 {[%emt 0:00:56]} exf4 {[%emt 0:00:00]} 13. Bxf4 {[%emt 0:00:06]} Nbd7 {[%emt 0:00:00]} 14. c4 {[%emt 0:00:28]} Ne5 {[%emt 0:00:00]} 15. Kh1 Nfd7 {[%emt 0:05:30]} 16. Qd2 {[%emt 0:14:42]} f5 {[%emt 0:00:00] [#]} 17. b4 $146 {[%emt 0:01:50]} ({Predecessor:} 17. Rae1 Bf6 18. b3 Qc7 19. Bb1 Nc5 20. Ne2 Rfe8 21. Nd4 Kh8 22. Qd1 a5 23. Re3 {1-0 (34) Dgebuadze,A (2465)-Holtel,J (2333) Wachtebeke 2022}) 17... Bf6 {[%emt 0:00:00]} 18. Rac1 {[%emt 1:21:02]} b6 {[%emt 0:01:30] Against c5} 19. Bh6 {[%emt 0:00:00]} (19. Bxf5 $11 gxf5 20. Nxf5) 19... Re8 {[%emt 0:00:00]} 20. Bxf5 {[%emt 0:00:00]} gxf5 {[%emt 0:00:00]} 21. Rxf5 {[%emt 0:01:30]} Qe7 {[%emt 0:00:00]} 22. Nh5 {[%emt 0:00:00]} Bh8 {[%emt 0:00:00]} (22... Kh8 23. Rcf1 Nxc4 24. Qf2 $16) (22... Nf7 $17 23. Rcf1 Nxh6 24. Rxf6 (24. Nxf6+ Nxf6 25. Qxh6 Nd7 $17) 24... Ng4 25. Qg5+ Kh8 26. Qxg4 Nxf6) 23. Nf4 {[%emt 0:00:00]} (23. Rcf1 Ng6 24. Ng3 Nde5 $17) 23... Nxc4 {[%emt 0:00:00]} 24. Qf2 $11 {[%emt 0:00:00]} Qe3 {[%emt 0:00:00]} 25. Qf1 {[%emt 0:00:00] Black must now prevent Rg5+.} Nd2 {[%emt 0:00:00]} 26. Qd1 {[%emt 0:00:00][%mdl 1024] Qg4+ would kill now. White has compensation.} Nf6 {[%emt 0:00:00] Inhibits Qg4+.} 27. Rg5+ {[%emt 0:00:00]} Kf7 {[%emt 0:00:00] And now ...Rac8 would win.} 28. Ne6 {[%emt 0:00:00]} (28. Rg3 $2 Qf2 29. Nh3 (29. Rc7+ $2 Re7 $19) 29... Nde4 $1 30. Rc7+ Re7 $19) ({Better is} 28. Nh5 $1 $14 Qf2 29. Nxf6 (29. Rc7+ $2 Re7 $19) 29... Kxf6 30. Rg4) 28... Qd3 {[%emt 0:00:00] [#]} (28... Rxe6 29. dxe6+ Kxe6 30. Rg6 $3 $16 {[%mdl 512]} (30. Rd5 Qxh6 31. Rxd2 Qf4 $11)) (28... Qf2 $1 $11 {keeps the balance.} 29. Bg7 (29. Rc7+ Re7 $17) 29... Nde4 30. Bxf6 (30. Rc7+ Kg8 $15) 30... Kxf6) 29. Rg3 {[%emt 0:00:00] White is more active.} ({Not} 29. Rc7+ Re7 30. Rc2 Qf1+ 31. Qxf1 Nxf1 $17) (29. Bg7 $1 $16 {[%cal Rg7h8]} Nde4 30. Qxd3 (30. Rc7+ Re7 $11) 30... Nf2+ 31. Kg1 Nxd3 32. Rf1) 29... Qxd5 {[%emt 0:00:00] Strongly threatening ...Nde4.} 30. Nc7 $36 {[%emt 0:00:00][%mdl 2048] White has good play. Chess con chili.} Qxa2 {[%emt 0:00:03][%mdl 8192]} 31. Bxd2 $18 {[%emt 0:05:00] White is clearly winning.} ({Weaker is} 31. Qxd2 Qxd2 32. Bxd2 Ne4 $16) 31... Rac8 {[%emt 0:05:38]} 32. Nxe8 {[%emt 0:00:00]} Rxe8 {[%emt 0:00:12]} 33. Bc3 {[%emt 0:00:00] Threatening mate with Bxf6.} Rc8 {[%emt 0:01:06]} 34. Qf3 {[%emt 0:00:00] Weighted Error Value: White=0.22 (precise) /Black=0.18 (very precise)} 1-0

[Event "Charlotte Summer IM D 2022"]
[Site "Charlotte"]
[Date "2022.07.28"]
[Round "7.3"]
[White "Vigorito, David"]
[Black "Martin Del Campo Cardenas, Roberto Abel"]
[Result "1-0"]
[ECO "E62"]
[WhiteElo "2295"]
[BlackElo "2245"]
[Annotator "TA"]
[PlyCount "111"]
[EventDate "2022.07.24"]
[EventType "tourn"]
[EventCountry "USA"]
[SourceTitle "playchess.com"]
[Source "ChessBase"]
[SourceQuality "1"]
[TimeControl "5400+30"]

{[%evp 16,111,62,64,68,50,62,62,188,186,244,234,225,69,125,83,187,189,175,134,126,125,194,190,231,234,224,208,206,199,177,156,166,159,210,197,381,393,459,464,462,456,657,390,378,371,374,378,305,254,471,193,178,167,152,153,243,228,293,294,350,162,189,0,342,299,547,539,739,739,4148,4148,4141,4141,29955,29955,29964,4722,29974,29975,29985,29986,29986,29982,29985,29975,29992,29988,29988,29980,29994,29995,29995,29996,29996,29997,29998,29992]} 1. Nf3 {[%emt 0:00:09]} Nf6 {[%emt 0:00:04]} 2. c4 {[%emt 0:00:21]} g6 {[%emt 0:00:18]} 3. g3 {[%emt 0:00:53]} Bg7 {[%emt 0:00:04]} 4. Bg2 {[%emt 0:00:06]} O-O {[%emt 0:00:05]} 5. d4 {[%emt 0:00:28]} d6 {[%emt 0:00:15]} 6. Nc3 {[%emt 0:00:09]} c6 {[%emt 0:01:55]} 7. e4 {[%emt 0:00:56][%cal Be2e4,Be4e5][%mdl 32]} Qa5 {[%emt 0:01:57]} 8. O-O {[%emt 0:01:10]} Bg4 {[%emt 0:01:54]} 9. h3 {[%emt 0:02:02]} Bxf3 {[%emt 0:00:10] E62: King's Indian: Fianchetto: 6...c6 and Panno Variation (6...Nc6) without ...a6.} 10. Bxf3 {[%emt 0:00:07]} a6 {[%emt 0:02:31]} 11. Rb1 {[%emt 0:12:24]} c5 {[%emt 0:05:41]} (11... e5 $14) 12. e5 $18 {[%emt 0:07:32] [#]} Ne8 $146 {[%emt 0:01:37]} (12... Nfd7 $142) ({Predecessor:} 12... dxe5 13. dxe5 Nfd7 14. e6 fxe6 15. Bxb7 Ra7 16. Bg2 Ne5 17. Qc2 Kh8 18. Bd2 Qd8 {½-½ (35) Hristov,P (1973)-Todorov,O (2331) Teteven 2009}) 13. dxc5 {[%emt 0:06:31]} (13. Bxb7 $6 Ra7 $16) 13... dxc5 {[%emt 0:11:59]} 14. Qb3 $2 {[%emt 0:07:25]} ({Resist} 14. Bxb7 $6 Ra7) (14. Bg5 $18) 14... Ra7 {[%emt 0:03:50]} ({Black should play} 14... Nd7 $1 $14) 15. Bf4 {[%emt 0:10:17] White is much more active.} Nc6 {[%emt 1:05:40]} (15... Nc7 $16 {was called for.}) 16. Bxc6 {[%emt 0:02:41]} bxc6 {[%emt 0:00:00]} 17. Qa4 {[%emt 0:00:23]} Qb6 {[%emt 0:00:00]} 18. Qc2 {[%emt 0:01:42]} Rd7 {[%emt 0:00:00]} (18... Qb8 $16) 19. Na4 $1 {[%emt 0:03:59]} Qa5 {[%emt 0:00:00]} 20. Rbd1 {[%emt 0:01:37]} Rd4 {[%emt 0:00:00]} 21. a3 {[%emt 0:04:19][%cal Ob2b4] Threatens to win with b4!} Rxf4 {[%emt 0:00:00]} 22. gxf4 {[%emt 0:01:25][%cal Bg3f4,Bf4f5][%mdl 32]} Nc7 {[%emt 0:00:00]} 23. Nc3 {[%emt 0:01:34]} Ne6 {[%emt 0:00:00]} 24. Ne2 {[%emt 0:00:15]} Rb8 {[%emt 0:00:00]} (24... Qc7 $16 25. Rfe1 Qc8) 25. Rd7 {[%emt 0:05:30]} Bh6 $2 {[%emt 0:00:00]} (25... Qb6 {is a better defense.} 26. Rb1 (26. Rxe7 Qxb2 27. Re8+ Bf8 $16) 26... Rb7 27. Rxb7 Qxb7) 26. f5 {[%emt 0:02:54]} Nd4 {[%emt 0:00:00]} 27. Nxd4 {[%emt 0:00:54]} cxd4 {[%emt 0:00:00]} 28. c5 {[%emt 0:08:34]} Rb5 {[%emt 0:00:00]} (28... Qd2 $142 29. Qxd2 Bxd2) 29. Rxd4 {[%emt 0:05:23]} Rxc5 {[%emt 0:00:00]} 30. b4 {[%emt 0:00:07]} Rxc2 {[%emt 0:00:00]} 31. bxa5 {[%emt 0:00:05] And now f6 would win.} gxf5 {[%emt 0:00:00][%mdl 4096] Endgame KRR-KRB} 32. Rb1 {[%emt 0:00:13] Rb6 is the strong threat.} Rc5 $2 {[%emt 0:00:00]} (32... Bd2 {might work better.} 33. Rd7 Bg5) 33. Rb6 {[%emt 0:00:26]} (33. Kh1 $142 {White threatens Rg1+ and mate.} f6 34. exf6) 33... Rxa5 {[%emt 0:00:00]} 34. Rxc6 {[%emt 0:00:17]} Kg7 {[%emt 0:00:00]} 35. a4 f4 {[%emt 0:00:00]} (35... Rxe5 $16 36. Rxa6 Bg5) 36. Kg2 Rxe5 {[%emt 0:10:30]} 37. Rxa6 {[%emt 0:02:42] aiming for a5.} Rg5+ {[%emt 0:00:00]} 38. Kf3 (38. Kh2 $142) 38... Rh5 {[%emt 0:01:00]} 39. Kg2 $2 {[%emt 0:02:15]} (39. Re4) 39... Rg5+ $1 {[%emt 0:00:30]} 40. Kf1 Rh5 $2 {[%emt 0:00:00]} (40... Rc5 {keeps fighting.} 41. h4 f6) 41. a5 {[%emt 0:00:40]} Rxh3 {[%emt 0:00:00] [#]} 42. Ra4 {Inhibits Ra3.} e5 {[%emt 0:00:00] [#]} 43. Rxh6 $1 {[%emt 0:02:48][%mdl 576] Clearance} Rxh6 {[%emt 0:00:00] KR-KR} 44. a6 {White wants to mate with a7.} f3 {[%emt 0:02:30]} 45. Kg1 {[%emt 0:02:14]} Rg6+ {[%emt 0:00:00] [#]} 46. Kh2 $1 {[%emt 0:01:23] a7 would kill now.} ({Weaker is} 46. Kf1 Rb6 47. Ke1 Rb8 $11) 46... e4 47. a7 {[%emt 0:00:00] White mates.} e3 {[%emt 0:00:00]} 48. a8=Q {[%emt 0:09:40]} e2 {[%emt 0:00:00]} 49. Re4 {[%emt 0:00:00]} Rg2+ {[%emt 0:00:00]} 50. Kh1 Rxf2 {[%emt 0:03:00]} 51. Qa1+ {[%emt 0:00:00]} Kg6 {[%emt 0:00:30]} 52. Qg1+ {[%emt 0:00:00]} Kf5 53. Qg4+ {[%emt 0:00:00]} Kf6 54. Qf4+ {[%emt 0:00:00]} Kg6 {[%emt 0:00:00]} 55. Qg3+ {[%emt 0:00:30]} Kf5 56. Rf4+ {[%emt 0:00:30] Weighted Error Value: White=0.33/Black=0.73} 1-0

[Event "Charlotte Summer IM D 2022"]
[Site "Charlotte"]
[Date "2022.07.28"]
[Round "7.4"]
[White "Oberoi, Shelev"]
[Black "Chasin, Nico"]
[Result "0-1"]
[ECO "C42"]
[WhiteElo "2259"]
[BlackElo "2285"]
[Annotator "TA"]
[PlyCount "86"]
[EventDate "2022.07.24"]
[EventType "tourn"]
[EventCountry "USA"]
[SourceTitle "playchess.com"]
[Source "ChessBase"]
[SourceQuality "1"]
[TimeControl "5400+30"]

{[%evp 13,86,21,13,9,16,21,12,20,25,18,37,2,27,35,45,49,90,95,79,95,74,-42,-41,-89,-83,-110,-110,-162,-109,-96,-69,-111,-93,-166,-115,-168,-167,-162,-149,-166,-153,-286,-291,-313,-294,-251,-245,-463,-470,-590,-581,-579,-581,-1162,-1106,-1252,-262,-1203,-794,-754,-617,-617,-598,-593,-591,-551,-499,-565,-513,-588,-571,-5622,-5273,-5218,-5206]} 1. e4 {[%emt 1:31:00]} e5 {[%emt 0:10:20]} 2. Nf3 {[%emt 0:00:00]} Nf6 {[%emt 0:00:17]} 3. Nxe5 {[%emt 0:00:00]} d6 {[%emt 0:00:08]} 4. Nf3 {[%emt 0:00:00]} Nxe4 {[%emt 0:00:16]} 5. Nc3 {[%emt 0:00:00]} Nxc3 {[%emt 0:00:14]} 6. dxc3 {[%emt 0:00:00]} Be7 {[%emt 0:00:28]} 7. Be3 {[%emt 0:00:00]} Nd7 {[%emt 0:02:07]} 8. Qd2 {[%emt 0:00:00] C42: Petroff Defence: 3 Nxe5 and unusual White 3rd moves.} O-O {[%emt 0:02:25]} 9. O-O-O {[%emt 0:00:00]} c6 {[%emt 0:00:23]} 10. h4 {[%emt 0:00:00] The position is equal.} d5 {[%emt 0:02:18]} 11. Kb1 {[%emt 0:00:00]} Nf6 {[%emt 0:02:17]} 12. Bd3 {[%emt 0:00:00]} Bg4 {[%emt 0:15:41]} 13. Rde1 {[%emt 0:00:00] [#]} Ne4 $146 {[%emt 0:02:06]} ({Predecessor:} 13... c5 14. Ng5 b5 15. f3 Bd7 16. g4 Rc8 17. Bf4 Re8 18. Be5 h6 19. Qf4 Qb6 {1-0 (41) Adams,M (2690)-Sturua,Z (2530) Acqui Terme 2022}) 14. Qc1 {[%emt 0:00:00]} Nc5 {[%emt 0:58:30]} 15. Bxc5 {[%emt 0:00:00]} Bxc5 {[%emt 0:00:00]} 16. Ng5 $1 {[%emt 0:00:00]} h6 {[%emt 0:00:00]} (16... Bxf2 $2 17. Bxh7+ (17. Ref1 Bc5 $18) 17... Kh8 18. Qf4 (18. Ref1 Bg3 $16) 18... Bxe1 19. Qxg4 $16) 17. f3 {[%emt 0:00:00]} ({White should play} 17. Nh7 $1 $16) 17... Bd7 $36 {[%emt 0:00:00][%mdl 2048] White is under pressure.} (17... hxg5 18. hxg5 g6 19. fxg4 $16) 18. Qf4 {[%emt 0:00:00]} (18. Bh7+ $15 {was preferrable.} Kh8 19. Bd3) 18... Qb8 $1 $17 {[%emt 0:00:00]} (18... hxg5 $2 19. hxg5 f5 {[#]} 20. Rh8+ $3 {[%mdl 512]} Kf7 21. Bxf5 $1 $18) 19. Qxb8 {[%emt 0:00:00]} Raxb8 {[%emt 0:00:00]} 20. Bh7+ {[%emt 0:00:00]} Kh8 {[%emt 0:00:00] Hoping for ...Rfe8.} 21. Bd3 {[%emt 0:00:00][%cal Of3f4]} Rbe8 {[%emt 0:00:00]} ({Much less strong is} 21... hxg5 22. hxg5+ Kg8 23. Bh7+ Kh8 24. Bf5+ Kg8 25. Bxd7 $14) 22. Nh3 {[%emt 0:00:00]} Bd6 {[%emt 0:00:00]} 23. g4 {[%emt 0:00:00]} (23. c4 $17) 23... h5 {[%emt 0:00:00]} (23... g6 $19 24. c4 Rxe1+ 25. Rxe1 h5) 24. Bf5 {[%emt 0:00:00]} (24. Reg1 $17) 24... Bxf5 $19 {[%emt 0:00:00]} 25. gxf5 {[%emt 0:00:00]} Rxe1+ {[%emt 0:00:00]} 26. Rxe1 {[%emt 0:00:00][%mdl 4096] Endgame KRB-KRN} Bg3 {[%emt 0:00:00][%csl LRe1,LRh4]} 27. Re7 {[%emt 0:03:11]} (27. Rg1 $17 {might work better.} Re8 28. a3 Re1+ 29. Rxe1 Bxe1 30. Nf4) 27... Bxh4 {[%emt 0:00:00]} 28. Rxb7 {[%emt 0:00:09]} Re8 {[%emt 0:07:00][%cal Re8e1]} 29. a4 {[%emt 0:03:05]} Re3 {[%emt 0:00:30]} 30. Rb4 $2 {[%emt 0:03:41]} (30. Nf4 Rxf3 31. Nxh5 Rxf5 32. Nxg7 Kxg7 33. Rxa7) 30... Bf6 {[%emt 0:00:00]} 31. Nf4 {[%emt 0:01:36]} h4 {[%emt 0:00:00]} 32. Nh5 {[%emt 0:00:40]} Be7 {[%emt 0:00:00]} 33. Rf4 {[%emt 0:02:31]} h3 {[%emt 0:00:00]} 34. f6 {[%emt 0:00:42]} h2 $2 {[%emt 0:00:00]} (34... g5 35. Rf5 h2) 35. Ng3 $2 {[%emt 0:00:45]} (35. Rh4 Re1+ 36. Ka2) 35... Bxf6 {[%emt 0:00:00] Black is clearly winning.} 36. Rf5 {[%emt 0:00:06]} Re1+ {[%emt 0:00:00]} 37. Ka2 {[%emt 0:00:04]} h1=Q {[%emt 0:00:00]} 38. Nxh1 {[%emt 0:00:50]} Rxh1 {[%emt 0:00:00] KRB-KR} 39. c4 {[%emt 0:00:09]} Rh2 {[%emt 0:00:00]} 40. Kb1 {[%emt 0:00:32]} Rd2 {[%emt 0:00:00]} 41. cxd5 {[%emt 0:01:09]} Rxd5 {[%emt 0:00:00]} 42. Rxd5 {[%emt 0:00:16]} cxd5 {[%emt 0:00:00]} 43. b4 {[%emt 0:00:08]} Bc3 {[%emt 0:00:00] Weighted Error Value: White=0.85/Black=0.44} 0-1

[Event "Charlotte Summer IM D 2022"]
[Site "Charlotte"]
[Date "2022.07.28"]
[Round "8.1"]
[White "Bacus, Dharim"]
[Black "Wen, Teddie"]
[Result "1/2-1/2"]
[ECO "B76"]
[WhiteElo "2227"]
[BlackElo "2234"]
[Annotator "TA"]
[PlyCount "45"]
[EventDate "2022.07.24"]
[EventType "tourn"]
[EventCountry "USA"]
[SourceTitle "playchess.com"]
[Source "ChessBase"]
[SourceQuality "1"]
[TimeControl "5400+30"]

{[%evp 24,45,12,-31,93,0,-12,-66,-73,-73,-69,-137,-120,-116,-133,-138,-123,-116,-74,-217,-238,-223,-238,-210]} 1. e4 {[%emt 0:00:15]} c5 {[%emt 0:01:02]} 2. Nf3 {[%emt 0:00:22]} d6 {[%emt 0:00:04]} 3. d4 {[%emt 0:00:04]} cxd4 {[%emt 0:00:03]} 4. Nxd4 {[%emt 0:00:06]} Nf6 {[%emt 0:00:04]} 5. Nc3 {[%emt 0:00:06]} g6 {[%emt 0:00:10]} 6. Be3 {[%emt 0:00:18]} Bg7 {[%emt 0:00:04]} 7. f3 {[%emt 0:00:05]} O-O {[%emt 0:00:03]} 8. Qd2 {[%emt 0:01:11]} Nc6 {[%emt 0:00:10]} 9. g4 {[%emt 0:00:30]} Be6 {[%emt 0:00:30]} 10. Nxe6 {[%emt 0:00:21]} fxe6 {[%emt 0:00:00]} 11. Bc4 {[%emt 0:00:03]} Qc8 {[%emt 0:00:00]} 12. Bb3 {[%emt 0:40:41]} Na5 {[%emt 0:03:27]} 13. O-O-O {[%emt 0:04:43]} Nc4 {[%emt 0:00:51] [#] B76: Sicilian Dragon: Yugoslav Attack, 9 g4 and 9 0-0-0.} (13... Nxb3+ $15 {keeps the upper hand.} 14. axb3 Nd7) 14. Bxc4 {[%emt 0:01:12]} (14. Qd3 $1 $16 {[%cal Rd3c4]} Na5 15. Ne2) 14... Qxc4 $11 {[%emt 0:00:06]} 15. Bh6 {[%emt 0:00:05]} (15. Qd3 $11 Rac8 16. Rhf1) 15... Bxh6 $1 $15 {[%emt 0:10:27] Black is slightly better.} 16. Qxh6 {[%emt 0:01:09]} b5 {[%emt 0:00:02][%cal Bb7b5,Bb5b4][%mdl 32] [#] Strongly threatening ...b4.} 17. h4 $146 {[%emt 0:05:28]} ({White should play} 17. Qg5 $15) ({Predecessor:} 17. Kb1 b4 18. Na4 Qe2 19. Rd3 Nd7 20. Qe3 Qxe3 21. Rxe3 Ne5 22. Rb3 a5 23. a3 Nxf3 {0-1 (31) Manashvili,A (2215)-Supatashvili,K (2461) Tbilisi 2010}) 17... b4 $17 {[%emt 0:05:41]} 18. Nb1 {[%emt 0:08:05]} Rac8 {[%emt 0:04:31][%csl Gc8][%cal Rc4c2] [#]} (18... Qxa2 19. h5 b3 20. c3 $16) 19. Rh2 {[%emt 0:08:09]} Rc5 $40 {[%emt 0:02:28][%mdl 128] Black goes for the king.} ({Stronger than} 19... Qxa2 20. h5 b3 21. hxg6 bxc2 22. Rxc2 (22. gxh7+ $2 Kh8 $19) 22... Rxc2+ 23. Kxc2 $11) 20. b3 {[%emt 0:05:38]} Qa6 {[%emt 0:01:20]} 21. Qd2 {[%emt 0:01:56]} (21. Kb2 $17 {was called for.}) 21... Qxa2 $19 {[%emt 0:01:52]} 22. Qxb4 {[%emt 0:00:30]} Rfc8 {[%emt 0:00:30][%cal Rc5c2]} 23. Rdd2 {[%emt 0:00:30] Weighted Error Value: White=0.53/Black=0.28 (precise)} 1/2-1/2

[Event "Charlotte Summer IM D 2022"]
[Site "Charlotte"]
[Date "2022.07.28"]
[Round "8.2"]
[White "Chasin, Nico"]
[Black "Leyva Rivera, Yunier"]
[Result "1/2-1/2"]
[ECO "D37"]
[WhiteElo "2285"]
[BlackElo "2379"]
[Annotator "TA"]
[PlyCount "58"]
[EventDate "2022.07.24"]
[EventType "tourn"]
[EventCountry "USA"]
[SourceTitle "playchess.com"]
[Source "ChessBase"]
[SourceQuality "1"]
[TimeControl "5400+30"]

{[%evp 15,58,21,31,21,31,28,36,0,21,21,20,13,30,0,0,-54,-54,-42,-53,-60,-69,-69,-60,-66,-59,-66,-49,-61,-60,-71,-54,-45,-47,-51,-52,-58,-52,-58,-30,-45,-49,-49,-50,-43,-53]} 1. d4 {[%emt 0:09:33]} Nf6 {[%emt 1:31:00]} 2. c4 {[%emt 0:00:21]} e6 {[%emt 0:00:00]} 3. Nf3 {[%emt 0:00:14]} d5 {[%emt 0:00:00]} 4. Nc3 {[%emt 0:00:12]} Be7 {[%emt 0:00:00]} 5. Bf4 {[%emt 0:01:46]} O-O {[%emt 0:00:00]} 6. e3 {[%emt 1:21:24]} b6 {[%emt 0:00:00]} 7. Be2 {[%emt 0:00:30]} Bb7 {[%emt 0:00:00]} 8. O-O {[%emt 0:00:00]} c5 {[%emt 0:00:00]} 9. dxc5 {[%emt 0:00:00] D37: Queen's Gambit Declined: 5 Bf4.} bxc5 {[%emt 0:00:00]} 10. Qb3 {[%emt 0:00:00]} Qb6 {[%emt 0:00:00]} 11. Nb5 {[%emt 0:00:00] And now Nc7 would win. White is slightly better.} Na6 {[%emt 0:00:00] [#] Prevents Nc7.} 12. Ne5 $146 {[%emt 0:00:00]} ({Predecessor:} 12. a3 dxc4 13. Bxc4 Bd5 14. Rfd1 Rac8 15. Qa4 Bxc4 16. Qxc4 Rfd8 17. h3 h6 18. Bh2 {½-½ (48) Almeida,F (1800)-Haraguchi,M (1677) Araruama 2021}) 12... Rad8 {[%emt 0:00:00]} 13. Rfd1 {[%emt 0:00:00]} Nd7 {[%emt 0:06:00]} 14. Nxd7 {[%emt 0:00:00]} Rxd7 {[%emt 0:00:00]} 15. Nc3 {[%emt 0:00:00]} (15. cxd5 $11 exd5 16. Na3) 15... d4 $15 {[%emt 0:00:00]} 16. Qxb6 {[%emt 0:00:00]} axb6 {[%emt 0:00:00]} 17. Na4 {[%emt 0:00:00]} Bc6 {[%emt 0:00:00]} 18. b3 {[%emt 0:00:00]} ({Don't play} 18. Nxb6 Rb7 19. Nd5 exd5 $17) 18... Bf6 {[%emt 0:00:00][%cal Od4d3] [#] aiming for ...d3!} 19. exd4 {[%emt 0:00:00]} Bxd4 {[%emt 0:00:00]} ({Reject} 19... Rxd4 20. Be3 $11) 20. Rab1 {[%emt 0:00:00]} Rb7 {[%emt 0:00:00]} 21. a3 {[%emt 0:00:00]} e5 {[%emt 0:00:00]} 22. Bd2 {[%emt 0:00:00]} Rd8 {[%emt 0:00:00]} 23. Nc3 {[%emt 0:00:00]} Rbd7 {[%emt 0:00:00]} 24. Be1 {[%emt 0:00:00]} Nc7 {[%emt 0:00:00]} 25. b4 {[%emt 0:00:00]} f5 {[%emt 0:00:00]} 26. Kf1 {[%emt 0:00:00]} g6 {[%emt 0:00:00]} 27. bxc5 {[%emt 0:00:00]} Bxc5 {[%emt 0:00:00] Black is slightly better.} 28. Rxd7 {[%emt 0:00:00]} Rxd7 {[%emt 0:00:16]} 29. a4 {[%emt 0:00:00]} Kf7 {[%emt 0:01:23] Weighted Error Value: White=0.09 (flawless) /Black=0.07 (flawless)} 1/2-1/2